fUST/lending_fUST_20240118
["ID","MTS","AMOUNT","RATE_DAILY","PERIOD"]
[311965864,1705521045414,-1153.83,0.00024246,2]
[311965866,1705521045427,-1288.36,0.00024246,2]
[311965870,1705521045442,-617.77,0.00024246,2]
[311965871,1705521045456,-1129.55,0.00024246,2]
[311965872,1705521045468,-1794.99,0.00024246,2]
[311965873,1705521045480,-500.0,0.00024246,2]
[311965875,1705521045494,-2092.9,0.00024246,2]
[311965877,1705521045506,-150.0,0.00024369,2]
[311965878,1705521045519,-500.0,0.00024383,2]
[311965879,1705521045532,-6378.93,0.00024383,2]
[311965880,1705521045545,-550.84,0.00024383,2]
[311965881,1705521045558,-1153.83,0.00024383,2]
[311965882,1705521045568,-1288.36,0.00024383,2]
[311965883,1705521045578,-617.77,0.00024383,2]
[311965884,1705521045593,-1129.55,0.00024383,2]
[311965885,1705521045605,-1794.99,0.00024383,2]
[311965886,1705521045618,-500.0,0.00024383,2]
[311965887,1705521045630,-2092.9,0.00024383,2]
[311965888,1705521045642,-166.666666,0.00024482,2]
[311965890,1705521045656,-500.0,0.0002452,2]
[311965891,1705521045669,-6378.93,0.0002452,2]
[311965892,1705521045682,-550.84,0.0002452,2]
[311965893,1705521045696,-1153.83,0.0002452,2]
[311965894,1705521045710,-1288.36,0.0002452,2]
[311965895,1705521045724,-617.77,0.0002452,2]
[311965896,1705521045736,-1129.55,0.0002452,2]
[311965897,1705521045746,-1794.99,0.0002452,2]
[311965898,1705521045757,-572.25989004,0.0002452,2]
[311965899,1705521045768,-2092.9,0.0002452,2]
[311965900,1705521045781,-649.681478,0.00024657,2]
[311965901,1705521045794,-649.681478,0.00024657,2]
[311965902,1705521045805,-500.0,0.00024657,2]
[311965903,1705521045818,-500.0,0.00024657,2]
[311965904,1705521045830,-468.96,0.00024657,2]
[311965905,1705521045840,-1000.0,0.00024657,2]
[311965906,1705521045852,-822.14048339,0.00024657,2]
[311965907,1705521045863,-500.0,0.00024657,2]
[311965908,1705521045874,-6378.93,0.00024657,2]
[311965909,1705521045886,-550.84,0.00024657,2]
[311965910,1705521045896,-1153.83,0.00024657,2]
[311965911,1705521045908,-1288.36,0.00024657,2]
[311965912,1705521045919,-617.77,0.00024657,2]
[311965913,1705521045931,-1129.55,0.00024657,2]
[311965914,1705521045942,-1794.99,0.00024657,2]
[311965915,1705521045953,-2092.9,0.00024657,2]
[311965916,1705521045964,-500.0,0.00024794,2]
[311965917,1705521045975,-6378.93,0.00024794,2]
[311965918,1705521045986,-550.84,0.00024794,2]
[311965919,1705521045997,-1153.83,0.00024794,2]
[311965920,1705521046009,-1288.36,0.00024794,2]
[311965921,1705521046021,-617.77,0.00024794,2]
[311965922,1705521046033,-1129.55,0.00024794,2]
[311965923,1705521046044,-1794.99,0.00024794,2]
[311965924,1705521046055,-2092.9,0.00024794,2]
[311965925,1705521046067,-359.42076213,0.00024931,2]
[311965926,1705521046078,-6378.93,0.00024931,2]
[311965927,1705521046090,-550.84,0.00024931,2]
[311965928,1705521046099,-1153.83,0.00024931,2]
[311965929,1705521046109,-1288.36,0.00024931,2]
[311965930,1705521046118,-617.77,0.00024931,2]
[311965931,1705521046128,-1129.55,0.00024931,2]
[311965932,1705521046137,-1794.99,0.00024931,2]
[311965933,1705521046147,-2092.9,0.00024931,2]
[311965934,1705521046157,-497.79734774,0.0002495,5]
[311965935,1705521046167,-4717.84150687,0.00025,2]
[311965936,1705521046176,-1045.26733645,0.00025,2]
[311965937,1705521046186,-677.25499859,0.00025,2]
[311965938,1705521046195,-3000.0,0.00025,2]
[311965939,1705521046205,-154.9690062,0.00025,2]
[311965940,1705521046215,-6378.9685422,0.00025068,2]
[311965941,1705521046224,-550.91321017,0.00025068,2]
[311965942,1705521046233,-1154.03,0.00025068,2]
[311965943,1705521046243,-1288.56887668,0.00025068,2]
[311965944,1705521046363,-617.88910114,0.00025068,2]
[311965945,1705521046377,-1129.61182527,0.00025068,2]
[311965946,1705521046388,-1795.11970586,0.00025068,2]
[311965947,1705521046397,-2092.92408535,0.00025068,2]
[311965948,1705521046407,-201.31,0.000251,4]
[311965949,1705521046418,-911.0,0.000258,2]
[311965950,1705521046428,-526.20378462,0.00026,2]
[311965951,1705521046438,-280.0,0.00026396,15]
[311965952,1705521046447,-630.3433929,0.000264,2]
[311965953,1705521046456,-1500.0,0.00027,2]
[311965954,1705521046466,-10101.54136081,0.00027091,2]
[311965955,1705521046479,-39898.45863919,0.00027091,2]
[311965956,1705521046488,-500.0,0.00027397,7]
[311965957,1705521046498,-155.0,0.00027397,2]
[311965958,1705521046506,-500.0,0.00027397,2]
[311965959,1705521046516,-500.0,0.00027534,2]
[311965960,1705521046526,-509.1638357,0.00027671,2]
[311965961,1705521046535,-620.51716964,0.0002772,2]
[311965962,1705521046544,-244.715056,0.00027922,2]
[311965963,1705521046553,-211.552342,0.00027922,2]
[311965964,1705521046562,-152.951786,0.00027922,2]
[311965965,1705521046571,-150.084162,0.00027922,2]
[311965966,1705521046581,-10538.67875196,0.00027964,2]
[311965967,1705521046591,-2634.66968799,0.00027964,2]
[311965968,1705521046600,-210.88504767,0.00027964,2]
[311965969,1705521046609,-1000.0,0.00027964,7]
[311965970,1705521046619,-491.95992346,0.00027964,2]
[311965971,1705521046628,-187.62153552,0.00027964,2]
[311965972,1705521046638,-306.00744097,0.00027964,2]
[311965973,1705521046647,-289.92459079,0.00028,2]
[311965974,1705521046658,-140.29479342,0.00028,2]
[311965975,1705521046717,-500.0,0.00021917,2]
[311965976,1705521046726,-14.65872053,0.00028,2]
[311965977,1705521046736,-283.82703277,0.00028,10]
[311965978,1705521046745,-155.07977607,0.00028,2]
[311965979,1705521046754,-46.29327183,0.00028,2]
[311965980,1705521046838,-1254.77130121,0.00028,2]
[311965981,1705521046877,-198.93542696,0.00028,2]
[311965982,1705521046887,-908.66212103,0.0002802,2]
[311965983,1705521046896,-198.957615,0.00028493,2]
[311965984,1705521046907,-198.957615,0.00028493,2]
[311965985,1705521046917,-198.957615,0.00028493,2]
[311965986,1705521046926,-198.957615,0.00028493,2]
[311965987,1705521046936,-198.957615,0.00028493,2]
[311965988,1705521046945,-198.957615,0.00028493,2]
[311965989,1705521046955,-198.957615,0.00028493,2]
[311965990,1705521046964,-198.957615,0.00028493,2]
[311965991,1705521046973,-397.263182,0.00028493,2]
[311965992,1705521046983,-57.27410237,0.000285,4]
[311965993,1705521046992,-1968.59557318,0.00028603,2]
[311965994,1705521047044,-13031.40442682,0.00028603,2]
[311965995,1705521047053,-151.0,0.00028603,2]
[311965996,1705521047062,-200.87029837,0.00028603,2]
[311965997,1705521047071,-649.681478,0.00028603,2]
[311965998,1705521047080,-649.681478,0.00028603,2]
[311965999,1705521047088,-150.084162,0.0002862,2]
[311966000,1705521047097,-152.951786,0.0002862,2]
[311966001,1705521047106,-155.0,0.00028767,2]
[311966002,1705521047114,-281.696336,0.00028767,2]
[311966003,1705521047123,-201.947493,0.00028767,2]
[311966004,1705521047132,-152.951786,0.00028969,2]
[311966005,1705521047141,-154.93802479,0.00029,2]
[311966006,1705521047150,-2455.22488983,0.00029,2]
[311966007,1705521047161,-1000.0,0.00029,29]
[311966008,1705521047170,-1500.0,0.00029,2]
[311966009,1705521047179,-391.0,0.00029036,15]
[311966010,1705521047188,-620.02585848,0.00029106,2]
[311966011,1705521047198,-2547.66987656,0.00029111,2]
[311966012,1705521047207,-4761.51,0.00029268,2]
[311966013,1705521047216,-4761.51,0.00029268,2]
[311966014,1705521047225,-4761.51,0.00029268,2]
[311966015,1705521047234,-4761.51,0.00029268,2]
[311966016,1705521047243,-4761.51,0.00029268,2]
[311966017,1705521047252,-4761.51,0.00029268,2]
[311966018,1705521047261,-4761.51,0.00029268,2]
[311966019,1705521047273,-4761.51,0.00029268,2]
[311966020,1705521047283,-4761.51,0.00029268,2]
[311966021,1705521047292,-4761.51,0.00029268,2]
[311966022,1705521047303,-5000.0,0.00029269,5]
[311966023,1705521047312,-5000.0,0.00029269,5]
[311966024,1705521047322,-153.0,0.00029315,2]
[311966025,1705521047332,-154.1994419,0.00029315,2]
[311966026,1705521047341,-153.0,0.00029315,2]
[311966027,1705521047355,-198.957615,0.00029315,2]
[311966028,1705521047365,-306.0,0.00029315,2]
[311966029,1705521047374,-153.0,0.00029315,2]
[311966030,1705521047383,-198.957615,0.00029315,2]
[311966031,1705521047393,-153.0,0.00029315,2]
[311966032,1705521047402,-153.0,0.00029315,2]
[311966033,1705521047411,-153.0,0.00029315,2]
[311966034,1705521047420,-153.0,0.00029315,2]
[311966035,1705521047430,-198.957615,0.00029315,2]
[311966036,1705521047439,-150.084162,0.00029318,2]
[311966037,1705521047448,-152.951786,0.00029318,2]
[311966038,1705521047457,-152.951786,0.00029318,2]
[311966039,1705521047466,-205.22827846,0.0002943,2]
[311966040,1705521047475,-1000.0,0.00029452,2]
[311966041,1705521047484,-1000.0,0.00029462,2]
[311966042,1705521047494,-1000.0,0.00029533,2]
[311966043,1705521047503,-1000.0,0.00029543,2]
[311966044,1705521047512,-572.92650037,0.00029558,2]
[311966045,1705521047525,-427.07349963,0.00029558,2]
[311966046,1705521047535,-188.34780385,0.00029559,2]
[311966047,1705521047547,-811.65219615,0.00029559,2]
[311966048,1705521047557,-1000.0,0.00029581,2]
[311966049,1705521047566,-1000.0,0.00029587,2]
[311966050,1705521047575,-1000.0,0.00029592,2]
[311966051,1705521047585,-1000.0,0.00029626,2]
[311966052,1705521047595,-281.696336,0.00029687,2]
[311966053,1705521047604,-906.65146785,0.00029692,2]
[311966054,1705521047664,-335.42930922,0.00021917,2]
[311966055,1705521047678,-164.57069078,0.00021917,2]
[311966056,1705521047687,-500.0,0.00022054,2]
[311966057,1705521047697,-52.11855627,0.00022191,2]
[311966066,1705521265052,1780.04959201,0.0001,2]
[311966080,1705522156104,-154.93802479,0.00020093,4]
[311966081,1705522156125,-11304.9719559,0.00020337,2]
[311966082,1705522156146,-3482.62955366,0.00020375,2]
[311966083,1705522156166,-8754.07446216,0.00020376,2]
[311966084,1705522156186,-1292.60980594,0.00020376,2]
[311966085,1705522156206,-2927.790761,0.00020381,2]
[311966086,1705522156228,-498.216444,0.00020399,2]
[311966087,1705522156349,-545.39911829,0.00020914,2]
[311966088,1705522156371,-109.00094635,0.00020914,2]
[311966252,1705522238127,-154.9690062,0.00019721,3]
[311966254,1705522238138,-310.6610969,0.0002051,2]
[311966255,1705522238148,-46.28000596,0.00020914,2]
[311966257,1705522238158,-200.0,0.00020914,2]
[311966259,1705522238167,-3094.86988322,0.00021,7]
[311966261,1705522238176,-327.18048,0.00021473,2]
[311966263,1705522238185,-3473.40049568,0.00021474,2]
[311966264,1705522238194,-9111.67082876,0.0002155,2]
[311966266,1705522238203,-304.55447656,0.00021817,2]
[311966268,1705522238212,-710.57,0.00021905,3]
[311966270,1705522238221,-592.14,0.00021905,3]
[311966272,1705522238230,-309.70579883,0.00021912,2]
[311966274,1705522238240,-5483.36584487,0.00021912,2]
[311966276,1705522238249,-496.91772445,0.00021912,2]
[311966278,1705522238258,-1018.6437214,0.00021913,2]
[311966280,1705522238267,-36931.7299546,0.00021914,2]
[311966282,1705522238276,-3162.5462947,0.00021915,2]
[311966284,1705522238285,-156.10323196,0.00021915,2]
[311966286,1705522238295,-2035.80105868,0.00021915,2]
[311966288,1705522238304,-1580.81290041,0.00021915,2]
[311966290,1705522238314,-246.90614662,0.00021915,2]
[311966292,1705522238323,-1815.68321298,0.00021915,2]
[311966294,1705522238333,-3776.08205652,0.00021915,2]
[311966296,1705522238342,-7996.6868672,0.00021915,2]
[311966298,1705522238351,-173.53134365,0.00021915,2]
[311966300,1705522238361,-357.25188437,0.00021915,2]
[311966302,1705522238369,-155.14101314,0.00021915,2]
[311966304,1705522238378,-198.20629725,0.00021915,2]
[311966306,1705522238389,-1736.89858519,0.00021915,2]
[311966308,1705522238401,-12167.23553282,0.00021915,2]
[311966310,1705522238410,-423.3648219,0.00021916,2]
[311966312,1705522238418,-3199.74681397,0.00021916,2]
[311966314,1705522238427,-502.04178712,0.00021917,2]
[311966316,1705522238437,-500.0,0.00021917,2]
[311966317,1705522238445,-500.0,0.00021917,2]
[311966318,1705522238454,-500.0,0.00021917,2]
[311966319,1705522238463,-500.0,0.00021917,2]
[311966320,1705522238472,-500.0,0.00021917,2]
[311966321,1705522238482,-500.0,0.00021917,2]
[311966322,1705522238491,-429.10569862,0.00021917,2]
[311966323,1705522238500,-500.0,0.00021917,2]
[311966324,1705522238509,-632.46,0.00021917,2]
[311966325,1705522238518,-500.0,0.00021917,2]
[311966326,1705522238528,-500.0,0.00021917,2]
[311966327,1705522238538,-500.0,0.00021917,2]
[311966328,1705522238547,-500.44765468,0.00021917,2]
[311966329,1705522238556,-46.60593409,0.00021917,2]
[311966577,1705522241051,-509.09162985,0.00021917,2]
[311966579,1705522241060,-500.0,0.00021917,2]
[311966581,1705522241070,-200.08832143,0.00021917,2]
[311966586,1705522241113,-299.91167857,0.00021917,2]
[311966589,1705522241122,-500.0,0.00021917,2]
[311966592,1705522241132,-500.0,0.00021917,2]
[311966594,1705522241143,-502.63221027,0.00021917,2]
[311966596,1705522241152,-500.0,0.00021917,2]
[311966598,1705522241162,-500.0,0.00021917,2]
[311966600,1705522241171,-257.31538694,0.00021917,2]
[311966602,1705522241180,-500.0,0.00021917,2]
[311966604,1705522241189,-500.0,0.00021917,2]
[311966606,1705522241199,-500.0,0.00021917,2]
[311966608,1705522241208,-384.57471689,0.00021917,2]
[311966610,1705522241216,-500.0,0.00021917,2]
[311966612,1705522241225,-1000.0,0.00021917,2]
[311966614,1705522241235,-500.0,0.00021917,2]
[311966616,1705522241244,-574.30974102,0.00021917,2]
[311966618,1705522241253,-500.0,0.00021917,2]
[311966620,1705522241262,-500.0,0.00021917,2]
[311966622,1705522241271,-500.0,0.00021917,2]
[311966624,1705522241280,-533.92341691,0.00021917,2]
[311966626,1705522241290,-501.20711397,0.00021917,2]
[311966628,1705522241299,-500.0,0.00021917,2]
[311966629,1705522241308,-505.6647202,0.00021917,2]
[311966632,1705522241318,-409.6214788,0.00021917,2]
[311967171,1705522246093,-4561.83306101,0.00020914,2]
[311968599,1705522803413,249.3,0.00018018,2]
[311968620,1705522870413,10292.26107692,0.00018018,2]
[311968621,1705522884359,3820.82533229,0.00018018,2]
[311968630,1705523219701,-334.82848718,0.00019722,2]
[311968631,1705523219732,-154.9690062,0.00019722,3]
[311968632,1705523219757,-318.33596757,0.00019722,2]
[311968633,1705523219900,-16.49251961,0.00019722,2]
[311968634,1705523219925,-154.9690062,0.00019723,2]
[311968635,1705523224087,-328.13191744,0.00019722,2]
[311968636,1705523224254,-6.69656974,0.00019722,2]
[311968637,1705523226095,-1697.20420298,0.00019817,2]
[311968645,1705523348161,-154.9690062,0.00018821,3]
[311968646,1705523348181,-29.37413795,0.00019817,2]
[311968647,1705523348203,-164.44494495,0.00019993,2]
[311968648,1705523348225,-249.108222,0.00020093,2]
[311968649,1705523348254,-12490.1936889,0.00020094,2]
[311968735,1705523432119,-154.9690062,0.00018821,3]
[311968737,1705523432130,-67.7774809,0.00020094,2]
[311968739,1705523432139,-200.0,0.00020094,2]
[311968741,1705523432149,-172.31035007,0.00020814,2]
[311968743,1705523432159,-155.82387987,0.00020891,2]
[311968745,1705523432168,-164.44494494,0.00020905,2]
[311968747,1705523432177,-652.81497888,0.00020912,2]
[311968750,1705523432193,-439.565,0.00020912,2]
[311968752,1705523432205,-457.3882805,0.00020912,2]
[311968754,1705523432214,-2037.3106961,0.00020912,2]
[311968756,1705523432223,-1541.36483086,0.00020913,2]
[311968758,1705523432232,-12101.51135863,0.00020914,2]
[311968760,1705523432241,-194.70078633,0.00020914,2]
[311968761,1705523432251,-182.5736117,0.00020914,2]
[311968763,1705523432260,-190.72506666,0.00020914,2]
[311968764,1705523432270,-10203.1396244,0.00020914,2]
[311968766,1705523432279,-268.3728881,0.00020914,2]
[311968768,1705523432289,-906.8736875,0.00020914,2]
[311968770,1705523432298,-9111.67082876,0.0002155,2]
[311968772,1705523432307,-164.44494494,0.00021817,2]
[311968773,1705523432317,-306.0889608,0.00021817,2]
[311968774,1705523432326,-187.3554591,0.00021873,2]
[311968776,1705523432335,-1577.46,0.00021907,3]
[311968777,1705523432344,-215.94785072,0.00021915,2]
[311968779,1705523432353,-278.87194788,0.00021916,2]
[311968781,1705523432363,-849.41831623,0.00021916,2]
[311968782,1705523432373,-1309.88168198,0.00021916,2]
[311968784,1705523432382,-500.0,0.00021917,2]
[311968785,1705523432391,-496.66696298,0.00021917,2]
[311968786,1705523432400,-497.72312481,0.00021917,2]
[311968787,1705523432410,-500.0,0.00021917,2]
[311968788,1705523432419,-500.0,0.00021917,2]
[311968789,1705523432429,-501.99211654,0.00021917,2]
[311968790,1705523432438,-500.0,0.00021917,2]
[311968791,1705523432447,-500.0,0.00021917,2]
[311968792,1705523432456,-500.0,0.00021917,2]
[311968793,1705523432466,-500.0,0.00021917,2]
[311968794,1705523432475,-500.0,0.00021917,2]
[311968795,1705523432484,-500.0,0.00021917,2]
[311968796,1705523432493,-502.82129946,0.00021917,2]
[311968797,1705523432502,-523.84467898,0.00021917,2]
[311968798,1705523432521,-500.0,0.00021917,2]
[311968799,1705523432532,-222.47310657,0.00021917,2]
[311968800,1705523432543,-500.0,0.00021917,2]
[311968801,1705523432552,-500.0,0.00021917,2]
[311968802,1705523432562,-500.0,0.00021917,2]
[311968803,1705523432572,-500.0,0.00021917,2]
[311968804,1705523432581,-454.68388981,0.00021917,2]
[311968805,1705523432591,-500.0,0.00021917,2]
[311968806,1705523432601,-261.31076788,0.00021917,2]
[311968807,1705523432610,-500.0,0.00021917,2]
[311968808,1705523432620,-500.0,0.00021917,2]
[311968809,1705523432629,-500.0,0.00021917,2]
[311968810,1705523432639,-500.0,0.00021917,2]
[311968811,1705523432648,-500.0,0.00021917,2]
[311968812,1705523432659,-512.41301664,0.00021917,2]
[311968813,1705523432669,-500.0,0.00021917,2]
[311968814,1705523432678,-500.0,0.00021917,2]
[311968815,1705523432688,-500.0,0.00021917,2]
[311968816,1705523432698,-500.0,0.00021917,2]
[311968817,1705523432707,-500.0,0.00021917,2]
[311968818,1705523432717,-506.0700257,0.00021917,2]
[311968819,1705523432727,-511.57846325,0.00021917,2]
[311968820,1705523432736,-500.0,0.00021917,2]
[311968821,1705523432746,-500.0,0.00021917,2]
[311968822,1705523432755,-500.0,0.00021917,2]
[311968823,1705523432765,-500.0,0.00021917,2]
[311968824,1705523432775,-500.0,0.00021917,2]
[311968825,1705523432784,-500.0,0.00021917,2]
[311968826,1705523432794,-500.0,0.00021917,2]
[311968827,1705523432804,-500.0,0.00021917,2]
[311968828,1705523432814,-500.0,0.00021917,2]
[311968829,1705523432825,-500.0,0.00021917,2]
[311968830,1705523432834,-500.0,0.00021917,2]
[311968831,1705523432844,-500.0,0.00021917,2]
[311968832,1705523432853,-567.53245739,0.00021917,2]
[311968833,1705523432862,-500.0,0.00021917,2]
[311968834,1705523432873,-500.0,0.00021917,2]
[311968835,1705523432883,-500.0,0.00021917,2]
[311968836,1705523432892,-508.66142748,0.00021917,2]
[311968837,1705523432903,-500.0,0.00021917,2]
[311968838,1705523432913,-500.0,0.00021917,2]
[311968839,1705523432922,-500.0,0.00021917,2]
[311968840,1705523432932,-500.0,0.00021917,2]
[311968841,1705523432941,-500.0,0.00021917,2]
[311968842,1705523432950,-500.0,0.00021917,2]
[311968843,1705523432961,-500.0,0.00021917,2]
[311968844,1705523432971,-500.0,0.00021917,2]
[311968845,1705523432981,-500.0,0.00021917,2]
[311968846,1705523432990,-500.0,0.00021917,2]
[311968847,1705523433000,-500.0,0.00021917,2]
[311968848,1705523433009,-500.0,0.00021917,2]
[311968849,1705523433018,-155.03516206,0.00021917,2]
[311968850,1705523433028,-500.0,0.00021917,2]
[311968851,1705523433037,-231.00957222,0.00021917,2]
[311968852,1705523433047,-500.0,0.00021917,2]
[311968853,1705523433057,-500.0,0.00021917,2]
[311968854,1705523433067,-500.0,0.00021917,2]
[311968855,1705523433077,-219.91537736,0.00021917,2]
[311968856,1705523433087,-1000.0,0.00021917,2]
[311968857,1705523433097,-500.0,0.00021917,2]
[311968858,1705523433107,-500.83927712,0.00021917,2]
[311968859,1705523433117,-500.0,0.00021917,2]
[311968860,1705523433128,-500.0,0.00021917,2]
[311968861,1705523433139,-500.0,0.00021917,2]
[311968862,1705523433148,-500.0,0.00021917,2]
[311968863,1705523433161,-500.0,0.00021917,2]
[311968864,1705523433170,-500.0,0.00021917,2]
[311968865,1705523433180,-500.0,0.00021917,2]
[311968866,1705523433190,-500.0,0.00021917,2]
[311968867,1705523433200,-500.0,0.00021917,2]
[311968868,1705523433210,-500.0,0.00021917,2]
[311968869,1705523433220,-500.0,0.00021917,2]
[311968870,1705523433230,-157.72893197,0.00021917,2]
[311968871,1705523433240,-598.60148851,0.00021917,2]
[311968872,1705523433250,-500.0,0.00021917,2]
[311968873,1705523433260,-500.0,0.00021917,2]
[311968874,1705523433270,-500.0,0.00021917,2]
[311968875,1705523433279,-500.0,0.00021917,2]
[311968876,1705523433289,-500.0,0.00021917,2]
[311968877,1705523433299,-500.0,0.00021917,2]
[311968878,1705523433309,-500.0,0.00021917,2]
[311968879,1705523433319,-500.0,0.00021917,2]
[311968880,1705523433329,-500.0,0.00021917,2]
[311968881,1705523433339,-500.0,0.00021917,2]
[311968882,1705523433349,-500.0,0.00021917,2]
[311968883,1705523433358,-500.0,0.00021917,2]
[311968884,1705523433368,-500.0,0.00021917,2]
[311968885,1705523433383,-500.0,0.00021917,2]
[311968886,1705523433393,-500.0,0.00021917,2]
[311968887,1705523433407,-500.0,0.00021917,2]
[311968888,1705523433417,-500.0,0.00021917,2]
[311968889,1705523433426,-500.0,0.00021917,2]
[311968890,1705523433436,-500.0,0.00021917,2]
[311968891,1705523433446,-500.0,0.00021917,2]
[311968892,1705523433456,-500.0,0.00021917,2]
[311968893,1705523433465,-500.0,0.00021917,2]
[311968894,1705523433475,-500.0,0.00021917,2]
[311968895,1705523433484,-514.79494569,0.00021917,2]
[311968896,1705523433493,-511.00635889,0.00021917,2]
[311968897,1705523433503,-628.02418839,0.00021917,2]
[311968898,1705523433512,-500.0,0.00021917,2]
[311968899,1705523433522,-500.0,0.00021917,2]
[311968900,1705523433632,-503.24629556,0.00021917,2]
[311968901,1705523433642,-500.0,0.00021917,2]
[311968902,1705523433652,-500.0,0.00021917,2]
[311968903,1705523433661,-500.0,0.00021917,2]
[311968904,1705523433671,-500.0,0.00021917,2]
[311968905,1705523433680,-500.0,0.00021917,2]
[311968906,1705523433689,-500.0,0.00021917,2]
[311968907,1705523433699,-500.0,0.00021917,2]
[311968908,1705523433708,-500.0,0.00021917,2]
[311968909,1705523433717,-500.0,0.00021917,2]
[311968910,1705523433726,-503.79040743,0.00021917,2]
[311968911,1705523433736,-500.0,0.00021917,2]
[311968912,1705523433745,-500.0,0.00021917,2]
[311968913,1705523433754,-180.36944667,0.00021917,2]
[311968921,1705523438208,-202.97368975,0.00021916,2]
[311968922,1705523438217,-319.63055333,0.00021917,2]
[311968923,1705523438227,-244.85486963,0.00021917,2]
[311968924,1705523438264,-255.14513037,0.00021917,2]
[311968925,1705523438274,-500.0,0.00021917,2]
[311968926,1705523438283,-500.0,0.00021917,2]
[311968927,1705523438292,-500.0,0.00021917,2]
[311968928,1705523438300,-500.0,0.00021917,2]
[311968929,1705523438309,-500.0,0.00021917,2]
[311968930,1705523438318,-500.0,0.00021917,2]
[311968931,1705523438326,-500.0,0.00021917,2]
[311968932,1705523438335,-500.0,0.00021917,2]
[311968933,1705523438344,-500.0,0.00021917,2]
[311968934,1705523438353,-500.0,0.00021917,2]
[311968935,1705523438362,-164.48532718,0.00021917,2]
[311968936,1705523438372,-500.0,0.00021917,2]
[311968937,1705523438383,-500.0,0.00021917,2]
[311968938,1705523438392,-500.0,0.00021917,2]
[311968939,1705523438400,-500.0,0.00021917,2]
[311968940,1705523438409,-285.69,0.00021917,2]
[311968941,1705523438418,-500.0,0.00021917,2]
[311968942,1705523438426,-500.0,0.00021917,2]
[311968943,1705523438435,-500.0,0.00021917,2]
[311968944,1705523438444,-500.0,0.00021917,2]
[311968945,1705523438453,-500.25080538,0.00021917,2]
[311968946,1705523438462,-500.0,0.00021917,2]
[311968947,1705523438470,-684.13,0.00021917,2]
[311968948,1705523438479,-514.91426394,0.00021917,2]
[311968949,1705523438488,-500.0,0.00021917,2]
[311968950,1705523438497,-500.0,0.00021917,2]
[311968951,1705523438506,-500.0,0.00021917,2]
[311968952,1705523438515,-500.0,0.00021917,2]
[311968953,1705523438524,-500.0,0.00021917,2]
[311968954,1705523438533,-500.0,0.00021917,2]
[311968955,1705523438542,-506.74088154,0.00021917,2]
[311968956,1705523438551,-733.13,0.00021917,2]
[311968957,1705523438561,-503.73641132,0.00021917,2]
[311968958,1705523438569,-500.0,0.00021917,2]
[311968959,1705523438578,-502.53967213,0.00021917,2]
[311968960,1705523438587,-500.0,0.00021917,2]
[311968961,1705523438596,-500.0,0.00021917,2]
[311968962,1705523438605,-500.0,0.00021917,2]
[311968963,1705523438614,-500.0,0.00021917,2]
[311968964,1705523438623,-500.0,0.00021917,2]
[311968965,1705523438633,-500.0,0.00021917,2]
[311968966,1705523438642,-500.0,0.00021917,2]
[311968967,1705523438651,-500.0,0.00021917,2]
[311968968,1705523438660,-501.49196383,0.00021917,2]
[311968969,1705523438669,-500.0,0.00021917,2]
[311968970,1705523438679,-562.44642155,0.00021917,2]
[311968971,1705523438689,-473.89489476,0.00021917,2]
[311968972,1705523438699,-401.84937161,0.00021917,2]
[311968973,1705523438710,-500.0,0.00021917,2]
[311968974,1705523438719,-501.11966255,0.00021917,2]
[311968975,1705523438729,-500.0,0.00021917,2]
[311968976,1705523438738,-507.28630478,0.00021917,2]